lending/lending_fUSD_20250131
["ID","MTS","AMOUNT","RATE_DAILY","PERIOD"]
[351082079,1738327843261,-500.0,0.00016438,2]
[351082081,1738327843271,-500.0,0.00016438,2]
[351082083,1738327843280,-2599.88,0.00016438,2]
[351082085,1738327843290,-1789.08,0.00016438,2]
[351082087,1738327843302,-500.0,0.00016438,2]
[351082089,1738327843312,-500.0,0.00016438,2]
[351082091,1738327843321,-636.61,0.00016438,2]
[351082093,1738327843331,-3329.28,0.00016438,2]
[351082095,1738327843340,-500.0,0.00016438,2]
[351082097,1738327843350,-500.0,0.00016438,2]
[351082099,1738327843360,-710.96,0.00016438,2]
[351082101,1738327843370,-500.0,0.00016438,2]
[351082103,1738327843380,-501.29917767,0.00016438,2]
[351082105,1738327843389,-1944.67,0.00016438,2]
[351082107,1738327843399,-500.0,0.00016438,2]
[351082109,1738327843409,-500.0,0.00016438,2]
[351082111,1738327843419,-4066.08,0.00016438,2]
[351082113,1738327843430,-500.0,0.00016438,2]
[351082115,1738327843439,-2135.3,0.00016438,2]
[351082117,1738327843449,-2281.08,0.00016438,2]
[351082120,1738327843461,-500.0,0.00016438,2]
[351082121,1738327843472,-1228.39,0.00016438,2]
[351082124,1738327843484,-500.0,0.00016438,2]
[351082126,1738327843494,-775.34,0.00016438,2]
[351082128,1738327843504,-525.68474461,0.00016438,2]
[351082130,1738327843514,-151.219778,0.00016438,2]
[351082132,1738327843524,-500.0,0.00016438,2]
[351082134,1738327843534,-514.37324326,0.00016438,2]
[351082136,1738327843546,-500.0,0.00016438,2]
[351082138,1738327843558,-1182.78,0.00016438,2]
[351082140,1738327843568,-500.0,0.00016438,2]
[351082142,1738327843578,-500.0,0.00016438,2]
[351082144,1738327843588,-500.0,0.00016438,2]
[351082146,1738327843598,-500.0,0.00016438,2]
[351082148,1738327843608,-5199.85,0.00016438,2]
[351082150,1738327843618,-500.0,0.00016438,2]
[351082152,1738327843627,-500.0,0.00016438,2]
[351082154,1738327843637,-500.0,0.00016438,2]
[351082156,1738327843647,-4488.38,0.00016438,2]
[351082158,1738327843657,-1082.85,0.00016438,2]
[351082160,1738327843667,-500.0,0.00016438,2]
[351082162,1738327843678,-500.0,0.00016438,2]
[351082164,1738327843688,-500.0,0.00016438,2]
[351082166,1738327843698,-500.0,0.00016438,2]
[351082168,1738327843708,-1915.53,0.00016438,2]
[351082170,1738327843718,-1034.21,0.00016438,2]
[351082172,1738327843728,-500.0,0.00016438,2]
[351082174,1738327843741,-1122.57,0.00016438,2]
[351082177,1738327843755,-500.0,0.00016438,2]
[351082199,1738327843765,-500.0,0.00016438,2]
[351082200,1738327844079,-500.0,0.00016438,2]
[351082201,1738327844089,-1686.02,0.00016438,2]
[351082202,1738327844098,-1258.5,0.00016438,2]
[351082204,1738327844107,-500.0,0.00016438,2]
[351082206,1738327844117,-528.44855321,0.00016438,2]
[351082208,1738327844127,-5957.19,0.00016438,2]
[351082210,1738327844136,-10975.61,0.00016438,2]
[351082212,1738327844145,-500.0,0.00016438,2]
[351082214,1738327844155,-1169.5,0.00016438,2]
[351082216,1738327844164,-849.45,0.00016438,2]
[351082218,1738327844173,-702.04,0.00016438,2]
[351082220,1738327844182,-557.79,0.00016438,2]
[351082222,1738327844191,-500.0,0.00016438,2]
[351082224,1738327844201,-154.135677,0.00016438,2]
[351082226,1738327844210,-505.62233868,0.00016438,2]
[351082228,1738327844219,-500.0,0.00016438,2]
[351082230,1738327844229,-5362.39,0.00016438,2]
[351082232,1738327844238,-500.0,0.00016438,2]
[351082234,1738327844247,-500.0,0.00016438,2]
[351082236,1738327844256,-500.0,0.00016438,2]
[351082238,1738327844265,-6528.92,0.00016438,2]
[351082240,1738327844274,-500.0,0.00016438,2]
[351082242,1738327844283,-946.4,0.00016438,2]
[351082243,1738327844292,-1997.14,0.00016438,2]
[351082245,1738327844304,-556.51,0.00016438,2]
[351082248,1738327844313,-500.0,0.00016438,2]
[351082250,1738327844323,-153.436238,0.00016438,2]
[351082251,1738327844332,-500.0,0.00016438,2]
[351082254,1738327844342,-500.0,0.00016438,2]
[351082256,1738327844352,-500.0,0.00016438,2]
[351082258,1738327844361,-3374.25,0.00016438,2]
[351082260,1738327844370,-2510.0,0.00016438,2]
[351082262,1738327844379,-158.63320692,0.00016438,2]
[351082264,1738327844388,-506.57025605,0.00016438,2]
[351082266,1738327844398,-500.0,0.00016438,2]
[351082268,1738327844407,-500.0,0.00016438,2]
[351082270,1738327844417,-500.0,0.00016438,2]
[351082272,1738327844426,-6439.4,0.00016438,2]
[351082274,1738327844435,-1587.21,0.00016438,2]
[351082275,1738327844444,-500.0,0.00016438,2]
[351082277,1738327844454,-500.0,0.00016438,2]
[351082279,1738327844463,-500.0,0.00016438,2]
[351082281,1738327844472,-408.40108697,0.00016438,2]
[351082283,1738327844481,-671.09,0.00016438,2]
[351082286,1738327844491,-500.0,0.00016438,2]
[351082288,1738327844501,-1210.85,0.00016438,2]
[351082289,1738327844510,-1230.68,0.00016438,2]
[351082291,1738327844519,-2795.53,0.00016438,2]
[351082293,1738327844529,-500.0,0.00016438,2]
[351082295,1738327844539,-500.0,0.00016438,2]
[351082297,1738327844550,-500.0,0.00016438,2]
[351082299,1738327844559,-500.0,0.00016438,2]
[351082301,1738327844568,-500.0,0.00016438,2]
[351082303,1738327844578,-959.52,0.00016438,2]
[351082305,1738327844587,-1572.38,0.00016438,2]
[351082307,1738327844596,-500.0,0.00016438,2]
[351082309,1738327844605,-500.0,0.00016438,2]
[351082311,1738327844616,-500.0,0.00016438,2]
[351082313,1738327844625,-500.0,0.00016438,2]
[351082315,1738327844634,-500.0,0.00016438,2]
[351082317,1738327844644,-500.0,0.00016438,2]
[351082319,1738327844653,-500.0,0.00016438,2]
[351082321,1738327844663,-9897.63606752,0.00016438,2]
[351082323,1738327844672,-269.9406502,0.0001646,2]
[351082325,1738327844682,-225.35024042,0.00016473,2]
[351082328,1738327844691,-500.0,0.00016473,2]
[351082330,1738327844701,-500.0,0.00016473,2]
[351082332,1738327844710,-500.0,0.00016473,2]
[351082333,1738327844719,-156.97271821,0.00016475,2]
[351082336,1738327844729,-167.06155872,0.00016475,2]
[351082337,1738327844739,-178.156591,0.00016475,2]
[351082340,1738327844751,-500.0,0.00016511,2]
[351082342,1738327844760,-6337.1813674,0.00016512,2]
[351082344,1738327844769,-1295.09024086,0.00016512,2]
[351082345,1738327844778,-178.16255008,0.00016565,2]
[351082347,1738327844788,-1009.11,0.00016574,2]
[351082350,1738327844798,-1009.11,0.00016574,2]
[351082352,1738327844808,-500.0,0.00016574,2]
[351082354,1738327844818,-500.0,0.00016574,2]
[351082356,1738327844827,-502.834558,0.00016575,2]
[351082358,1738327844836,-500.0,0.00016575,2]
[351082360,1738327844846,-500.0,0.00016575,2]
[351082362,1738327844854,-500.0,0.00016575,2]
[351082364,1738327844864,-502.12592053,0.00016575,2]
[351082366,1738327844873,-500.0,0.00016575,2]
[351082368,1738327844882,-514.9328134,0.00016575,2]
[351082370,1738327844892,-500.0,0.00016575,2]
[351082372,1738327844901,-501.86679618,0.00016575,2]
[351082374,1738327844910,-284.0054363,0.00016575,2]
[351082376,1738327844920,-502.5655613,0.00016575,2]
[351082378,1738327844929,-500.0,0.00016575,2]
[351082380,1738327844938,-500.0,0.00016575,2]
[351082382,1738327844948,-500.84956122,0.00016575,2]
[351082384,1738327844957,-501.54291805,0.00016575,2]
[351082386,1738327844966,-500.0,0.00016575,2]
[351082388,1738327844976,-500.0,0.00016575,2]
[351082390,1738327844985,-501.39599894,0.00016575,2]
[351082392,1738327844995,-244.37876642,0.00016575,2]
[351082394,1738327845004,-500.0,0.00016575,2]
[351082395,1738327845026,-500.39198988,0.00016575,2]
[351082397,1738327845036,-356.59668234,0.00016575,2]
[351082400,1738327845054,-143.40331766,0.00016575,2]
[351082402,1738327845063,-500.0,0.00016575,2]
[351082404,1738327845073,-500.98906069,0.00016575,2]
[351082406,1738327845083,-500.0,0.00016575,2]
[351082408,1738327845092,-500.0,0.00016575,2]
[351082410,1738327845102,-501.1440295,0.00016575,2]
[351082412,1738327845112,-500.0,0.00016575,2]
[351082414,1738327845121,-500.0,0.00016575,2]
[351082416,1738327845130,-502.38530975,0.00016575,2]
[351082418,1738327845140,-500.0,0.00016575,2]
[351082420,1738327845150,-207.26145012,0.00016575,2]
[351082422,1738327845159,-501.64690389,0.00016575,2]
[351082424,1738327845168,-500.0,0.00016575,2]
[351082426,1738327845177,-1321.951391,0.00016575,2]
[351082428,1738327845187,-500.0,0.00016575,2]
[351082430,1738327845196,-500.0,0.00016575,2]
[351082432,1738327845206,-500.0,0.00016575,2]
[351082434,1738327845215,-500.0,0.00016575,2]
[351082436,1738327845224,-500.0,0.00016575,2]
[351082438,1738327845234,-500.0,0.00016575,2]
[351082440,1738327845243,-500.0,0.00016575,2]
[351082442,1738327845252,-508.16130561,0.00016575,2]
[351082446,1738327845263,-500.0,0.00016575,2]
[351082448,1738327845272,-500.0,0.00016575,2]
[351082450,1738327845281,-518.48454262,0.00016575,2]
[351082452,1738327845291,-923.910832,0.00016575,2]
[351082454,1738327845301,-500.0,0.00016575,2]
[351082456,1738327845310,-500.0,0.00016575,2]
[351082458,1738327845319,-500.0,0.00016575,2]
[351082460,1738327845328,-500.0,0.00016575,2]
[351082463,1738327845337,-500.0,0.00016575,2]
[351082465,1738327845346,-500.0,0.00016575,2]
[351082467,1738327845355,-500.0,0.00016575,2]
[351082469,1738327845364,-500.0,0.00016575,2]
[351082471,1738327845373,-500.0,0.00016575,2]
[351082473,1738327845383,-500.0,0.00016575,2]
[351082475,1738327845392,-500.0,0.00016575,2]
[351082477,1738327845401,-500.0,0.00016575,2]
[351082480,1738327845411,-370.66185716,0.00016575,2]
[351082482,1738327845424,-129.33814284,0.00016575,2]
[351082484,1738327845433,-500.0,0.00016575,2]
[351082486,1738327845442,-35.73345207,0.00016575,2]
[351082490,1738327845466,-464.26654793,0.00016575,2]
[351082492,1738327845475,-371.42196323,0.00016575,2]
[351082494,1738327845487,-128.57803677,0.00016575,2]
[351082496,1738327845496,-351.30621306,0.00016575,2]
[351082498,1738327845506,-500.0,0.00016575,2]
[351082500,1738327845515,-642.18,0.00016575,2]
[351082502,1738327845525,-500.0,0.00016575,2]
[351082504,1738327845534,-510.26524631,0.00016575,2]
[351082506,1738327845543,-500.0,0.00016575,2]
[351082508,1738327845554,-500.0,0.00016575,2]
[351082510,1738327845563,-500.0,0.00016575,2]
[351082512,1738327845572,-500.0,0.00016575,2]
[351082514,1738327845582,-500.0,0.00016575,2]
[351082516,1738327845592,-500.0,0.00016575,2]
[351082518,1738327845601,-500.0,0.00016575,2]
[351082520,1738327845611,-500.0,0.00016575,2]
[351082522,1738327845620,-500.0,0.00016575,2]
[351082524,1738327845630,-500.0,0.00016575,2]
[351082526,1738327845639,-500.0,0.00016575,2]
[351082528,1738327845648,-500.0,0.00016575,2]
[351082530,1738327845658,-500.0,0.00016575,2]
[351082532,1738327845668,-500.0,0.00016575,2]
[351082534,1738327845677,-500.0,0.00016575,2]
[351082536,1738327845687,-500.0,0.00016575,2]
[351082537,1738327845696,-500.0,0.00016575,2]
[351082539,1738327845706,-500.0,0.00016575,2]
[351082542,1738327845715,-500.0,0.00016575,2]
[351082543,1738327845725,-506.32847774,0.00016575,2]
[351082545,1738327845735,-500.0,0.00016575,2]
[351082547,1738327845748,-500.0,0.00016575,2]
[351082549,1738327845758,-500.0,0.00016575,2]
[351082551,1738327845768,-500.0,0.00016575,2]
[351082553,1738327845777,-500.0,0.00016575,2]
[351082555,1738327845788,-500.0,0.00016575,2]
[351082557,1738327845798,-500.0,0.00016575,2]
[351082559,1738327845807,-500.0,0.00016575,2]
[351082561,1738327845817,-500.0,0.00016575,2]
[351082563,1738327845828,-500.0,0.00016575,2]
[351082565,1738327845837,-500.0,0.00016575,2]
[351082567,1738327845847,-500.0,0.00016575,2]
[351082569,1738327845856,-500.0,0.00016575,2]
[351082571,1738327845866,-500.0,0.00016575,2]
[351082573,1738327845875,-511.29,0.00016575,2]
[351082575,1738327845884,-500.0,0.00016575,2]
[351082577,1738327845893,-500.0,0.00016575,2]
[351082579,1738327845903,-500.0,0.00016575,2]
[351082581,1738327845912,-500.0,0.00016575,2]
[351082583,1738327845921,-500.0,0.00016575,2]
[351082585,1738327845931,-500.0,0.00016575,2]
[351082587,1738327845940,-500.0,0.00016575,2]
[351082590,1738327845950,-500.0,0.00016575,2]
[351082592,1738327845959,-500.0,0.00016575,2]
[351082594,1738327845969,-500.0,0.00016575,2]
[351082596,1738327845978,-500.0,0.00016575,2]
[351082598,1738327845987,-500.0,0.00016575,2]
[351082600,1738327845997,-500.0,0.00016575,2]
[351082602,1738327846007,-500.0,0.00016575,2]
[351082603,1738327846016,-633.19,0.00016575,2]
[351082606,1738327846027,-500.0,0.00016575,2]
[351082608,1738327846037,-500.0,0.00016575,2]
[351082610,1738327846048,-500.0,0.00016575,2]
[351082612,1738327846058,-500.0,0.00016575,2]
[351082614,1738327846067,-196.4110995,0.00016575,2]
[351082616,1738327846077,-500.0,0.00016575,2]
[351082618,1738327846086,-500.0,0.00016575,2]
[351082620,1738327846096,-500.0,0.00016575,2]
[351082622,1738327846105,-500.0,0.00016575,2]
[351082624,1738327846114,-500.0,0.00016575,2]
[351082626,1738327846123,-500.0,0.00016575,2]
[351082628,1738327846132,-500.0,0.00016575,2]
[351082629,1738327846142,-500.0,0.00016575,2]
[351082632,1738327846151,-511.24566691,0.00016575,2]
[351082634,1738327846161,-500.0,0.00016575,2]
[351082636,1738327846170,-498.17943016,0.00016575,2]
[351082637,1738327846179,-500.0,0.00016575,2]
[351082639,1738327846189,-500.0,0.00016575,2]
[351082641,1738327846199,-500.0,0.00016575,2]
[351082644,1738327846208,-523.53,0.00016575,2]
[351082645,1738327846217,-500.0,0.00016575,2]
[351082648,1738327846227,-500.0,0.00016575,2]
[351082649,1738327846236,-500.0,0.00016575,2]
[351082651,1738327846245,-500.0,0.00016575,2]
[351082653,1738327846255,-500.0,0.00016575,2]
[351082656,1738327846265,-500.0,0.00016575,2]
[351082657,1738327846274,-500.0,0.00016575,2]
[351082660,1738327846284,-500.0,0.00016575,2]
[351082661,1738327846293,-500.0,0.00016575,2]
[351082664,1738327846304,-500.0,0.00016575,2]
[351082666,1738327846318,-500.0,0.00016575,2]
[351082667,1738327846329,-500.0,0.00016575,2]
[351082669,1738327846340,-500.0,0.00016575,2]
[351082671,1738327846350,-500.0,0.00016575,2]
[351082674,1738327846360,-500.0,0.00016575,2]
[351082683,1738327846441,-500.0,0.00016575,2]
[351082685,1738327846451,-500.0,0.00016575,2]
[351082687,1738327846461,-500.0,0.00016575,2]
[351082688,1738327846470,-500.0,0.00016575,2]
[351082689,1738327846478,-500.0,0.00016575,2]
[351082690,1738327846487,-500.0,0.00016575,2]
[351082691,1738327846496,-500.0,0.00016575,2]
[351082692,1738327846505,-252.47523577,0.00016575,2]
[351082693,1738327846551,-247.52476423,0.00016575,2]
[351082695,1738327846562,-500.0,0.00016575,2]
[351082697,1738327846572,-500.0,0.00016575,2]
[351082699,1738327846581,-328.8664736,0.00016575,2]
[351082701,1738327846590,-500.0,0.00016575,2]
[351082703,1738327846600,-500.0,0.00016575,2]
[351082705,1738327846609,-500.0,0.00016575,2]
[351082706,1738327846620,-500.0,0.00016575,2]
[351082708,1738327846630,-500.0,0.00016575,2]
[351082710,1738327846639,-500.0,0.00016575,2]
[351082712,1738327846648,-500.0,0.00016575,2]
[351082714,1738327846657,-500.0,0.00016575,2]
[351082716,1738327846666,-500.0,0.00016575,2]
[351082718,1738327846676,-500.0,0.00016575,2]
[351082720,1738327846685,-500.0,0.00016575,2]
[351082722,1738327846694,-500.0,0.00016575,2]
[351082724,1738327846703,-500.0,0.00016575,2]
[351082726,1738327846712,-500.0,0.00016575,2]
[351082728,1738327846721,-500.0,0.00016575,2]
[351082730,1738327846730,-895.81,0.00016575,2]
[351082732,1738327846740,-500.0,0.00016575,2]
[351082734,1738327846752,-500.0,0.00016575,2]
[351082736,1738327846761,-500.0,0.00016575,2]
[351082738,1738327846770,-500.0,0.00016575,2]
[351082740,1738327846779,-584.54,0.00016575,2]
[351082742,1738327846790,-500.0,0.00016575,2]
[351082744,1738327846801,-1489.22,0.00016575,2]
[351082746,1738327846811,-500.0,0.00016575,2]
[351082748,1738327846821,-500.0,0.00016575,2]
[351082750,1738327846831,-159.40303725,0.00016575,2]
[351082752,1738327846840,-500.0,0.00016575,2]
[351082755,1738327846850,-500.0,0.00016575,2]
[351082757,1738327846859,-844.93,0.00016575,2]
[351082759,1738327846868,-500.0,0.00016575,2]
[351082760,1738327846878,-802.88,0.00016575,2]
[351082762,1738327846887,-500.0,0.00016575,2]
[351082764,1738327846896,-500.0,0.00016575,2]
[351082766,1738327846906,-1622.03,0.00016575,2]
[351082769,1738327846916,-500.0,0.00016575,2]
[351082771,1738327846926,-500.0,0.00016575,2]
[351082772,1738327846936,-500.0,0.00016575,2]
[351082774,1738327846945,-500.0,0.00016575,2]
[351082776,1738327846955,-500.0,0.00016575,2]
[351082778,1738327846964,-532.95452222,0.00016575,2]
[351082780,1738327846973,-500.0,0.00016575,2]
[351082783,1738327846983,-500.0,0.00016575,2]
[351082785,1738327846993,-500.0,0.00016575,2]
[351082787,1738327847002,-500.0,0.00016575,2]
[351082789,1738327847011,-500.0,0.00016575,2]
[351082791,1738327847021,-561.88,0.00016575,2]
[351082793,1738327847030,-500.0,0.00016575,2]
[351082795,1738327847039,-666.97,0.00016575,2]
[351082797,1738327847049,-1292.07,0.00016575,2]
[351082799,1738327847058,-1340.33,0.00016575,2]
[351082800,1738327847068,-564.77,0.00016575,2]
[351082802,1738327847077,-500.0,0.00016575,2]
[351082804,1738327847087,-500.0,0.00016575,2]
[351082806,1738327847096,-1470.52,0.00016575,2]
[351082808,1738327847105,-500.41,0.00016575,2]
[351082810,1738327847115,-801.33,0.00016575,2]
[351082812,1738327847124,-500.0,0.00016575,2]
[351082814,1738327847133,-500.0,0.00016575,2]
[351082816,1738327847142,-500.0,0.00016575,2]
[351082818,1738327847152,-973.74,0.00016575,2]
[351082820,1738327847161,-1229.71,0.00016575,2]
[351082822,1738327847171,-500.0,0.00016575,2]
[351082824,1738327847180,-500.0,0.00016575,2]
[351082826,1738327847190,-500.0,0.00016575,2]
[351082828,1738327847199,-500.0,0.00016575,2]
[351082830,1738327847208,-500.0,0.00016575,2]
[351082832,1738327847217,-500.0,0.00016575,2]
[351082834,1738327847226,-1003.86,0.00016575,2]
[351082836,1738327847235,-565.81,0.00016575,2]
[351082839,1738327847249,-500.0,0.00016575,2]
[351082841,1738327847258,-500.0,0.00016575,2]
[351082843,1738327847267,-500.0,0.00016575,2]
[351082845,1738327847276,-796.28,0.00016575,2]
[351082847,1738327847286,-500.0,0.00016575,2]
[351082849,1738327847295,-500.0,0.00016575,2]
[351082851,1738327847306,-500.0,0.00016575,2]
[351082853,1738327847316,-500.0,0.00016575,2]
[351082855,1738327847325,-500.0,0.00016575,2]
[351082857,1738327847334,-500.0,0.00016575,2]
[351082859,1738327847343,-510.0724789,0.00016575,2]
[351082861,1738327847352,-500.0,0.00016575,2]
[351082863,1738327847362,-500.0,0.00016575,2]
[351082865,1738327847371,-500.0,0.00016575,2]
[351082867,1738327847380,-577.96,0.00016575,2]
[351082869,1738327847389,-500.0,0.00016575,2]
[351082871,1738327847398,-500.0,0.00016575,2]
[351082873,1738327847407,-500.0,0.00016575,2]
[351082875,1738327847416,-1114.34,0.00016575,2]
[351082877,1738327847426,-500.0,0.00016575,2]
[351082879,1738327847437,-500.0,0.00016575,2]
[351082881,1738327847446,-500.0,0.00016575,2]
[351082883,1738327847455,-502.60881132,0.00016575,2]
[351082885,1738327847464,-500.0,0.00016575,2]
[351082887,1738327847473,-500.0,0.00016575,2]
[351082889,1738327847482,-770.74,0.00016575,2]
[351082891,1738327847491,-500.0,0.00016575,2]
[351082893,1738327847500,-355.57314937,0.00016575,2]
[351082895,1738327847510,-500.0,0.00016575,2]
[351082897,1738327847519,-1026.1,0.00016575,2]
[351082899,1738327847529,-500.0,0.00016575,2]
[351082901,1738327847539,-500.0,0.00016575,2]
[351082903,1738327847549,-500.0,0.00016575,2]
[351082906,1738327847559,-500.0,0.00016575,2]
[351082908,1738327847569,-757.56,0.00016575,2]
[351082910,1738327847578,-500.0,0.00016575,2]
[351082912,1738327847587,-704.34,0.00016575,2]
[351082914,1738327847597,-990.99,0.00016575,2]
[351082916,1738327847606,-859.22,0.00016575,2]
[351082918,1738327847615,-500.0,0.00016575,2]
[351082920,1738327847625,-500.0,0.00016575,2]
[351082922,1738327847634,-500.0,0.00016575,2]
[351082924,1738327847643,-500.0,0.00016575,2]
[351082926,1738327847653,-785.38,0.00016575,2]
[351082928,1738327847662,-500.0,0.00016575,2]
[351082930,1738327847672,-500.0,0.00016575,2]
[351082932,1738327847682,-500.0,0.00016575,2]
[351082934,1738327847691,-500.0,0.00016575,2]
[351082936,1738327847701,-500.0,0.00016575,2]
[351082938,1738327847710,-500.0,0.00016575,2]
[351082940,1738327847719,-500.0,0.00016575,2]
[351082942,1738327847728,-500.0,0.00016575,2]
[351082944,1738327847738,-500.0,0.00016575,2]
[351082946,1738327847750,-502.9,0.00016575,2]
[351082948,1738327847760,-500.0,0.00016575,2]
[351082950,1738327847769,-2424.09,0.00016575,2]
[351082952,1738327847778,-500.0,0.00016575,2]
[351082954,1738327847789,-582.48,0.00016575,2]
[351082956,1738327847799,-453.84188039,0.00016575,2]
[351082958,1738327847808,-500.0,0.00016575,2]
[351082960,1738327847819,-500.0,0.00016575,2]
[351082962,1738327847828,-500.0,0.00016575,2]
[351082964,1738327847838,-500.0,0.00016575,2]
[351082966,1738327847847,-634.9,0.00016575,2]
[351082968,1738327847856,-500.0,0.00016575,2]
[351082970,1738327847865,-500.0,0.00016575,2]
[351082972,1738327847874,-200.46730745,0.00016575,2]
[351082974,1738327847883,-500.0,0.00016575,2]
[351082976,1738327847893,-791.77,0.00016575,2]
[351082978,1738327847902,-500.0,0.00016575,2]
[351082980,1738327847912,-500.0,0.00016575,2]
[351082982,1738327847921,-500.0,0.00016575,2]
[351082984,1738327847930,-784.02,0.00016575,2]
[351082986,1738327847940,-782.18,0.00016575,2]
[351082988,1738327847949,-504.08,0.00016575,2]
[351082990,1738327847958,-1405.96,0.00016575,2]
[351082992,1738327847967,-577.80667353,0.00016575,2]
[351082994,1738327847976,-734.87,0.00016575,2]
[351082996,1738327847985,-500.0,0.00016575,2]
[351082998,1738327847994,-536.36,0.00016575,2]
[351083000,1738327848003,-776.8,0.00016575,2]
[351083002,1738327848012,-500.0,0.00016575,2]
[351083004,1738327848021,-932.67,0.00016575,2]
[351083006,1738327848031,-481.53753587,0.00016575,2]
[351083008,1738327848041,-1453.28,0.00016575,2]
[351083009,1738327848050,-1230.71,0.00016575,2]
[351083012,1738327848060,-1036.77,0.00016575,2]
[351083014,1738327848070,-500.0,0.00016575,2]
[351083015,1738327848080,-1420.49,0.00016575,2]
[351083018,1738327848094,-500.0,0.00016575,2]
[351083020,1738327848104,-500.94699344,0.00016575,2]
[351083022,1738327848115,-500.0,0.00016575,2]
[351083024,1738327848126,-500.0,0.00016575,2]
[351083026,1738327848136,-500.0,0.00016575,2]
[351083028,1738327848145,-1119.78,0.00016575,2]
[351083030,1738327848155,-500.0,0.00016575,2]
[351083032,1738327848166,-500.0,0.00016575,2]
[351083035,1738327848176,-500.0,0.00016575,2]
[351083036,1738327848186,-838.23,0.00016575,2]
[351083039,1738327848196,-840.17,0.00016575,2]
[351083040,1738327848205,-687.09,0.00016575,2]
[351083043,1738327848215,-500.0,0.00016575,2]
[351083045,1738327848225,-222.73588246,0.00016575,2]
[351083046,1738327848234,-682.46,0.00016575,2]
[351083048,1738327848244,-234.65062988,0.00016575,2]
[351083050,1738327848254,-1678.58,0.00016575,2]
[351083053,1738327848264,-512.6880474,0.00016575,2]
[351083054,1738327848273,-733.09,0.00016575,2]
[351083056,1738327848282,-515.44905331,0.00016575,2]
[351083058,1738327848292,-500.0,0.00016575,2]
[351083061,1738327848302,-773.77,0.00016575,2]
[351083063,1738327848312,-500.0,0.00016575,2]
[351083065,1738327848322,-500.0,0.00016575,2]
[351083066,1738327848332,-500.0,0.00016575,2]
[351083069,1738327848341,-1564.72,0.00016575,2]
[351083071,1738327848350,-500.0,0.00016575,2]
[351083073,1738327848360,-500.0,0.00016575,2]
[351083075,1738327848370,-500.0,0.00016575,2]
[351083076,1738327848380,-500.0,0.00016575,2]
[351083079,1738327848390,-735.22,0.00016575,2]
[351083081,1738327848402,-500.0,0.00016575,2]
[351083083,1738327848411,-500.0,0.00016575,2]
[351083085,1738327848420,-500.0,0.00016575,2]
[351083087,1738327848430,-796.2,0.00016575,2]
[351083089,1738327848439,-716.71,0.00016575,2]
[351083090,1738327848451,-510.22,0.00016575,2]
[351083092,1738327848463,-500.0,0.00016575,2]
[351083095,1738327848473,-500.0,0.00016575,2]
[351083096,1738327848482,-587.36,0.00016575,2]
[351083099,1738327848492,-500.0,0.00016575,2]
[351083100,1738327848501,-500.0,0.00016575,2]
[351083103,1738327848511,-500.0,0.00016575,2]
[351083105,1738327848520,-500.0,0.00016575,2]